[Event "Titled Tuesday Blitz November 08 Early 2022"]
[White "Szente Varga, Fruzsina"]
[Black "Pinheiro, Iung Alicio de O."]
[WhiteFideId "712264"]
[BlackFideId "2104350"]
[WhiteElo "1994"]
[BlackElo "2283"]
[Result "1-0"]
[Round "05"]
[TimeControl "180+1"]
[Date "2022.11.09"]
[WhiteClock "0:00:24"]
[BlackClock "0:00:13"]

1. e4 {[%clk 0:03:00]}  c6 {[%clk 0:02:56]} 2. d4 {[%clk 0:03:00]}  d5 {[%clk 0:02:56]} 3. Nc3 {[%clk 0:03:00]}  dxe4 {[%clk 0:02:56]} 4. Nxe4 {[%clk 0:03:01]}  Nf6 {[%clk 0:02:56]} 5. Nxf6+ {[%clk 0:03:00]}  exf6 {[%clk 0:02:57]} 6. c3 {[%clk 0:03:00]}  Bd6 {[%clk 0:02:58]} 7. Bd3 {[%clk 0:03:00]}  O-O {[%clk 0:02:58]} 8. Qc2 {[%clk 0:03:01]}  Re8+ {[%clk 0:02:57]} 9. Ne2 {[%clk 0:03:01]}  h5 {[%clk 0:02:57]} 10. Bd2 {[%clk 0:02:58]}  Nd7 {[%clk 0:02:54]} 11. O-O-O {[%clk 0:02:58]}  Nf8 {[%clk 0:02:55]} 12. f3 {[%clk 0:02:55]}  Be6 {[%clk 0:02:50]} 13. Kb1 {[%clk 0:02:54]}  b5 {[%clk 0:02:50]} 14. h4 {[%clk 0:02:52]}  Bd5 {[%clk 0:02:40]} 15. Rdg1 {[%clk 0:02:46]}  a5 {[%clk 0:02:34]} 16. Be4 {[%clk 0:02:43]}  f5 {[%clk 0:02:18]} 17. Bxd5 {[%clk 0:02:32]}  Rxe2 {[%clk 0:01:27]} 18. Bxc6 {[%clk 0:02:27]}  Rc8 {[%clk 0:01:24]} 19. Bxb5 {[%clk 0:02:24]}  Rf2 {[%clk 0:01:21]} 20. Qd3 {[%clk 0:02:15]}  Rb8 {[%clk 0:01:17]} 21. Be1 {[%clk 0:02:05]}  Bg3 {[%clk 0:00:55]} 22. Bxf2 {[%clk 0:02:03]}  Bxf2 {[%clk 0:00:56]} 23. Rf1 {[%clk 0:02:02]}  Bg3 {[%clk 0:00:56]} 24. a4 {[%clk 0:02:01]}  Ne6 {[%clk 0:00:55]} 25. Qxf5 {[%clk 0:01:57]}  g6 {[%clk 0:00:54]} 26. Qe4 {[%clk 0:01:52]}  Nf4 {[%clk 0:00:50]} 27. Rd1 {[%clk 0:01:46]}  Qd6 {[%clk 0:00:48]} 28. Qe5 {[%clk 0:01:33]}  Qd8 {[%clk 0:00:47]} 29. Qg5 {[%clk 0:01:32]}  Qxg5 {[%clk 0:00:42]} 30. hxg5 {[%clk 0:01:33]}  Ne6 {[%clk 0:00:43]} 31. d5 {[%clk 0:01:30]}  Nxg5 {[%clk 0:00:42]} 32. d6 {[%clk 0:01:30]}  Rd8 {[%clk 0:00:43]} 33. d7 {[%clk 0:01:30]}  Kf8 {[%clk 0:00:43]} 34. Rd2 {[%clk 0:01:27]}  Ke7 {[%clk 0:00:40]} 35. Rhd1 {[%clk 0:01:26]}  h4 {[%clk 0:00:40]} 36. c4 {[%clk 0:01:23]}  Ne6 {[%clk 0:00:39]} 37. Re2 {[%clk 0:01:23]}  Kf6 {[%clk 0:00:37]} 38. Rxe6+ {[%clk 0:01:20]}  Kxe6 {[%clk 0:00:35]} 39. c5 {[%clk 0:01:20]}  Bc7 {[%clk 0:00:35]} 40. c6 {[%clk 0:01:20]}  f5 {[%clk 0:00:35]} 41. Re1+ {[%clk 0:01:19]}  Kf6 {[%clk 0:00:30]} 42. Bc4 {[%clk 0:01:04]}  Kg5 {[%clk 0:00:30]} 43. Kc2 {[%clk 0:01:01]}  Kf4 {[%clk 0:00:29]} 44. Re2 {[%clk 0:00:57]}  Kg3 {[%clk 0:00:29]} 45. Bd5 {[%clk 0:00:56]}  g5 {[%clk 0:00:28]} 46. Kc3 {[%clk 0:00:53]}  g4 {[%clk 0:00:28]} 47. fxg4 {[%clk 0:00:52]}  fxg4 {[%clk 0:00:29]} 48. b4 {[%clk 0:00:49]}  axb4+ {[%clk 0:00:27]} 49. Kxb4 {[%clk 0:00:49]}  Rb8+ {[%clk 0:00:28]} 50. Kc4 {[%clk 0:00:47]}  Rb1 {[%clk 0:00:28]} 51. Re8 {[%clk 0:00:42]}  Rc1+ {[%clk 0:00:28]} 52. Kb3 {[%clk 0:00:41]}  Rd1 {[%clk 0:00:22]} 53. d8=Q {[%clk 0:00:34]}  Bxd8 {[%clk 0:00:21]} 54. Rxd8 {[%clk 0:00:34]}  h3 {[%clk 0:00:22]} 55. gxh3 {[%clk 0:00:33]}  gxh3 {[%clk 0:00:22]} 56. c7 {[%clk 0:00:31]}  h2 {[%clk 0:00:18]} 57. c8=Q {[%clk 0:00:29]}  Rxd5 {[%clk 0:00:15]} 58. Qc7+ {[%clk 0:00:25]}  Kg2 {[%clk 0:00:13]} 59. Qc6 {[%clk 0:00:24]} 1-0


[Site "https://www.chess.com"]

[Event "Titled Tuesday Blitz November 08 Early 2022"]
[White "Tari, Aryan"]
[Black "Bacrot, Etienne"]
[WhiteFideId "1510045"]
[BlackFideId "605506"]
[WhiteElo "2612"]
[BlackElo "2666"]
[Result "0-1"]
[Round "05"]
[TimeControl "180+1"]
[Date "2022.11.08"]
[WhiteClock "0:00:03"]
[BlackClock "0:00:09"]

1. e4 {[%clk 0:03:00]}  c5 {[%clk 0:02:55]} 2. Nf3 {[%clk 0:03:00]}  d6 {[%clk 0:02:55]} 3. Bc4 {[%clk 0:02:53]}  Nf6 {[%clk 0:02:52]} 4. Qe2 {[%clk 0:02:52]}  Nc6 {[%clk 0:02:52]} 5. h3 {[%clk 0:02:51]}  g6 {[%clk 0:02:52]} 6. O-O {[%clk 0:02:51]}  Bg7 {[%clk 0:02:52]} 7. c3 {[%clk 0:02:50]}  O-O {[%clk 0:02:52]} 8. d4 {[%clk 0:02:48]}  cxd4 {[%clk 0:02:52]} 9. cxd4 {[%clk 0:02:49]}  d5 {[%clk 0:02:52]} 10. exd5 {[%clk 0:02:50]}  Nxd5 {[%clk 0:02:53]} 11. Rd1 {[%clk 0:02:45]}  Be6 {[%clk 0:02:46]} 12. Bb3 {[%clk 0:02:41]}  Na5 {[%clk 0:02:38]} 13. Bc2 {[%clk 0:02:26]}  Rc8 {[%clk 0:02:37]} 14. Be4 {[%clk 0:02:20]}  Nf6 {[%clk 0:02:22]} 15. Bd3 {[%clk 0:02:06]}  Nd5 {[%clk 0:02:12]} 16. Be4 {[%clk 0:02:06]}  Qb6 {[%clk 0:01:42]} 17. Bxd5 {[%clk 0:02:00]}  Bxd5 {[%clk 0:01:41]} 18. Nc3 {[%clk 0:02:00]}  Bxf3 {[%clk 0:01:41]} 19. Qxf3 {[%clk 0:02:00]}  Nc6 {[%clk 0:01:29]} 20. d5 {[%clk 0:01:45]}  Ne5 {[%clk 0:01:23]} 21. Qe2 {[%clk 0:01:42]}  Nc4 {[%clk 0:01:17]} 22. Ne4 {[%clk 0:01:23]}  Nxb2 {[%clk 0:01:07]} 23. Bxb2 {[%clk 0:00:43]}  Qxb2 {[%clk 0:01:03]} 24. Qxb2 {[%clk 0:00:43]}  Bxb2 {[%clk 0:01:03]} 25. Rab1 {[%clk 0:00:44]}  Rc2 {[%clk 0:00:59]} 26. Rd2 {[%clk 0:00:44]}  Rc1+ {[%clk 0:00:47]} 27. Rxc1 {[%clk 0:00:41]}  Bxc1 {[%clk 0:00:48]} 28. Rc2 {[%clk 0:00:40]}  Ba3 {[%clk 0:00:47]} 29. Rc7 {[%clk 0:00:39]}  Rb8 {[%clk 0:00:46]} 30. g4 {[%clk 0:00:34]}  a5 {[%clk 0:00:46]} 31. Kg2 {[%clk 0:00:18]}  a4 {[%clk 0:00:44]} 32. Nc3 {[%clk 0:00:08]}  b5 {[%clk 0:00:43]} 33. Ra7 {[%clk 0:00:09]}  Bb4 {[%clk 0:00:34]} 34. Ne4 {[%clk 0:00:07]}  Rd8 {[%clk 0:00:28]} 35. d6 {[%clk 0:00:05]}  exd6 {[%clk 0:00:19]} 36. Rb7 {[%clk 0:00:05]}  d5 {[%clk 0:00:17]} 37. Nf6+ {[%clk 0:00:04]}  Kg7 {[%clk 0:00:17]} 38. g5 {[%clk 0:00:05]}  Bc3 {[%clk 0:00:17]} 39. Ng4 {[%clk 0:00:04]}  b4 {[%clk 0:00:17]} 40. Kf3 {[%clk 0:00:04]}  d4 {[%clk 0:00:14]} 41. Ne5 {[%clk 0:00:05]}  Rf8 {[%clk 0:00:14]} 42. Ke4 {[%clk 0:00:04]}  Re8 {[%clk 0:00:09]} 43. Rxf7+ {[%clk 0:00:03]}  Kg8 {[%clk 0:00:09]} 44. Rd7 {[%clk 0:00:02]}  d3 {[%clk 0:00:09]} 45. f4 {[%clk 0:00:03]}  d2 {[%clk 0:00:09]} 46. h4 {[%clk 0:00:03]}  b3 {[%clk 0:00:10]} 47. axb3 {[%clk 0:00:04]}  a3 {[%clk 0:00:10]} 48. h5 {[%clk 0:00:03]}  a2 {[%clk 0:00:10]} 49. h6 {[%clk 0:00:03]}  Bxe5 {[%clk 0:00:09]} 0-1


[Site "https://www.chess.com"]

[Event "Titled Tuesday Blitz November 08 Early 2022"]
[White "Tasev, Dejan"]
[Black "Sanchez, Robert"]
[WhiteFideId "936618"]
[BlackFideId "2034360"]
[WhiteElo "2256"]
[BlackElo "2399"]
[Result "1-0"]
[Round "05"]
[TimeControl "180+1"]
[Date "2022.11.09"]
[WhiteClock "0:00:17"]
[BlackClock "0:01:20"]

1. e4 {[%clk 0:03:00]}  d5 {[%clk 0:03:00]} 2. exd5 {[%clk 0:03:00]}  Qxd5 {[%clk 0:03:00]} 3. Nc3 {[%clk 0:03:00]}  Qe6+ {[%clk 0:03:01]} 4. Be2 {[%clk 0:02:59]}  Qg6 {[%clk 0:03:01]} 5. Bf3 {[%clk 0:02:59]}  Nc6 {[%clk 0:03:01]} 6. d3 {[%clk 0:02:34]}  Bd7 {[%clk 0:03:00]} 7. Bf4 {[%clk 0:02:25]}  O-O-O {[%clk 0:02:55]} 8. Bg3 {[%clk 0:02:25]}  e5 {[%clk 0:02:55]} 9. Nge2 {[%clk 0:02:13]}  f5 {[%clk 0:02:55]} 10. h3 {[%clk 0:02:08]}  Nf6 {[%clk 0:02:54]} 11. Qd2 {[%clk 0:01:54]}  Bb4 {[%clk 0:02:30]} 12. a3 {[%clk 0:01:52]}  Ba5 {[%clk 0:02:28]} 13. b4 {[%clk 0:01:51]}  Bb6 {[%clk 0:02:28]} 14. Na4 {[%clk 0:01:39]}  Kb8 {[%clk 0:02:09]} 15. Nxb6 {[%clk 0:01:34]}  axb6 {[%clk 0:02:09]} 16. b5 {[%clk 0:01:34]}  Nd4 {[%clk 0:02:10]} 17. Nxd4 {[%clk 0:01:32]}  exd4 {[%clk 0:02:10]} 18. O-O {[%clk 0:01:25]}  h5 {[%clk 0:02:08]} 19. Qf4 {[%clk 0:01:24]}  Rc8 {[%clk 0:01:58]} 20. a4 {[%clk 0:01:23]}  h4 {[%clk 0:01:56]} 21. Bh2 {[%clk 0:01:19]}  Nh5 {[%clk 0:01:52]} 22. Qxd4 {[%clk 0:01:05]}  Rhd8 {[%clk 0:01:47]} 23. Qb4 {[%clk 0:00:52]}  f4 {[%clk 0:01:41]} 24. a5 {[%clk 0:00:43]}  Bxh3 {[%clk 0:01:36]} 25. axb6 {[%clk 0:00:42]}  cxb6 {[%clk 0:01:37]} 26. Kh1 {[%clk 0:00:31]}  Bg4 {[%clk 0:01:21]} 27. Bxf4+ {[%clk 0:00:25]}  Nxf4 {[%clk 0:01:20]} 28. Qxf4+ {[%clk 0:00:26]}  Rc7 {[%clk 0:01:20]} 29. Qxg4 {[%clk 0:00:17]} 1-0


[Site "https://www.chess.com"]

[Event "Titled Tuesday Blitz November 08 Early 2022"]
[White "Ter-Sahakyan, Samvel"]
[Black "Krzyzanowski, Marcin"]
[WhiteFideId "13302531"]
[BlackFideId "1132199"]
[WhiteElo "2584"]
[BlackElo "2435"]
[Result "1/2-1/2"]
[Round "05"]
[TimeControl "180+1"]
[Date "2022.11.08"]
[WhiteClock "0:00:42"]
[BlackClock "0:00:09"]

1. d4 {[%clk 0:03:00]}  Nf6 {[%clk 0:02:59]} 2. c4 {[%clk 0:02:59]}  d6 {[%clk 0:02:59]} 3. Nc3 {[%clk 0:02:59]}  e5 {[%clk 0:02:59]} 4. Bg5 {[%clk 0:02:52]}  Be7 {[%clk 0:02:54]} 5. e3 {[%clk 0:02:52]}  O-O {[%clk 0:02:54]} 6. Nf3 {[%clk 0:02:52]}  h6 {[%clk 0:02:52]} 7. Bh4 {[%clk 0:02:51]}  exd4 {[%clk 0:02:49]} 8. Nxd4 {[%clk 0:02:51]}  Nc6 {[%clk 0:02:48]} 9. Be2 {[%clk 0:02:48]}  Nxd4 {[%clk 0:02:47]} 10. Qxd4 {[%clk 0:02:47]}  Be6 {[%clk 0:02:46]} 11. O-O {[%clk 0:02:47]}  Nd7 {[%clk 0:02:46]} 12. Bxe7 {[%clk 0:02:46]}  Qxe7 {[%clk 0:02:47]} 13. Rac1 {[%clk 0:02:36]}  Rfe8 {[%clk 0:02:46]} 14. Rfd1 {[%clk 0:02:34]}  a5 {[%clk 0:02:42]} 15. Nd5 {[%clk 0:02:19]}  Bxd5 {[%clk 0:02:37]} 16. cxd5 {[%clk 0:02:20]}  Nc5 {[%clk 0:02:37]} 17. Bb5 {[%clk 0:02:11]}  Red8 {[%clk 0:02:31]} 18. b3 {[%clk 0:02:11]}  f5 {[%clk 0:02:13]} 19. Bc4 {[%clk 0:01:57]}  Rf8 {[%clk 0:02:11]} 20. Qxc5 {[%clk 0:01:56]}  dxc5 {[%clk 0:02:11]} 21. d6+ {[%clk 0:01:56]}  Qf7 {[%clk 0:02:10]} 22. dxc7 {[%clk 0:01:48]}  Qxc4 {[%clk 0:02:07]} 23. Rxc4 {[%clk 0:01:48]}  b6 {[%clk 0:02:00]} 24. Rd6 {[%clk 0:01:48]}  Rf6 {[%clk 0:01:34]} 25. Rxf6 {[%clk 0:01:45]}  gxf6 {[%clk 0:01:35]} 26. Rf4 {[%clk 0:01:43]}  Rc8 {[%clk 0:01:34]} 27. Rxf5 {[%clk 0:01:43]}  Kg7 {[%clk 0:01:30]} 28. Kf1 {[%clk 0:01:37]}  Rxc7 {[%clk 0:01:29]} 29. Ke2 {[%clk 0:01:35]}  c4 {[%clk 0:01:27]} 30. bxc4 {[%clk 0:01:34]}  Rxc4 {[%clk 0:01:28]} 31. Rb5 {[%clk 0:01:34]}  Rc2+ {[%clk 0:01:21]} 32. Kf3 {[%clk 0:01:35]}  Rxa2 {[%clk 0:01:20]} 33. g4 {[%clk 0:01:31]}  Rc2 {[%clk 0:01:12]} 34. Rxb6 {[%clk 0:01:30]}  Rc5 {[%clk 0:01:12]} 35. Ra6 {[%clk 0:01:26]}  h5 {[%clk 0:01:09]} 36. h3 {[%clk 0:01:26]}  hxg4+ {[%clk 0:01:08]} 37. hxg4 {[%clk 0:01:27]}  Kg6 {[%clk 0:01:08]} 38. Kg3 {[%clk 0:01:25]}  Rb5 {[%clk 0:01:07]} 39. f4 {[%clk 0:01:25]}  Kg7 {[%clk 0:01:07]} 40. Kf3 {[%clk 0:01:24]}  Rc5 {[%clk 0:01:03]} 41. f5 {[%clk 0:01:24]}  Rb5 {[%clk 0:01:00]} 42. Kf4 {[%clk 0:01:24]}  Rb4+ {[%clk 0:00:51]} 43. e4 {[%clk 0:01:24]}  a4 {[%clk 0:00:51]} 44. Ra8 {[%clk 0:01:00]}  Kh6 {[%clk 0:00:41]} 45. Ra7 {[%clk 0:01:00]}  Rc4 {[%clk 0:00:37]} 46. Ra6 {[%clk 0:00:58]}  Kg7 {[%clk 0:00:36]} 47. Re6 {[%clk 0:00:58]}  Rc1 {[%clk 0:00:32]} 48. g5 {[%clk 0:00:51]}  Rf1+ {[%clk 0:00:23]} 49. Ke3 {[%clk 0:00:51]}  fxg5 {[%clk 0:00:23]} 50. Ra6 {[%clk 0:00:49]}  Ra1 {[%clk 0:00:15]} 51. e5 {[%clk 0:00:49]}  a3 {[%clk 0:00:13]} 52. Ra7+ {[%clk 0:00:49]}  Kh6 {[%clk 0:00:13]} 53. Kf2 {[%clk 0:00:47]}  a2 {[%clk 0:00:08]} 54. Kg2 {[%clk 0:00:47]}  Re1 {[%clk 0:00:08]} 55. Rxa2 {[%clk 0:00:47]}  Rxe5 {[%clk 0:00:08]} 56. Rf2 {[%clk 0:00:47]}  Kg7 {[%clk 0:00:08]} 57. Ra2 {[%clk 0:00:41]}  Kf6 {[%clk 0:00:07]} 58. Ra3 {[%clk 0:00:41]}  Kxf5 {[%clk 0:00:07]} 59. Ra2 {[%clk 0:00:41]}  Kg4 {[%clk 0:00:07]} 60. Rb2 {[%clk 0:00:41]}  Re4 {[%clk 0:00:06]} 61. Ra2 {[%clk 0:00:41]}  Kh4 {[%clk 0:00:05]} 62. Rb2 {[%clk 0:00:41]}  g4 {[%clk 0:00:06]} 63. Ra2 {[%clk 0:00:42]}  Re3 {[%clk 0:00:06]} 64. Rb2 {[%clk 0:00:41]}  Rg3+ {[%clk 0:00:07]} 65. Kh2 {[%clk 0:00:41]}  Rh3+ {[%clk 0:00:07]} 66. Kg2 {[%clk 0:00:41]}  Rg3+ {[%clk 0:00:08]} 67. Kh2 {[%clk 0:00:42]}  Rh3+ {[%clk 0:00:08]} 68. Kg2 {[%clk 0:00:42]}  Rg3+ {[%clk 0:00:09]} 1/2-1/2


[Site "https://www.chess.com"]

[Event "Titled Tuesday Blitz November 08 Early 2022"]
[White "Terzi, Alexei"]
[Black "Storey, Charles H"]
[WhiteFideId "13505076"]
[BlackFideId "406686"]
[WhiteElo "2172"]
[BlackElo "2252"]
[Result "0-1"]
[Round "05"]
[TimeControl "180+1"]
[Date "2022.11.09"]
[WhiteClock "0:00:04"]
[BlackClock "0:00:08"]

1. e4 {[%clk 0:03:00]}  g6 {[%clk 0:02:50]} 2. d4 {[%clk 0:02:54]}  Bg7 {[%clk 0:02:49]} 3. Nc3 {[%clk 0:02:43]}  c5 {[%clk 0:02:49]} 4. Nf3 {[%clk 0:02:42]}  Qa5 {[%clk 0:02:48]} 5. Bc4 {[%clk 0:02:30]}  cxd4 {[%clk 0:02:47]} 6. Nxd4 {[%clk 0:01:59]}  Qc5 {[%clk 0:02:45]} 7. Bxf7+ {[%clk 0:01:56]}  Kxf7 {[%clk 0:02:46]} 8. Nde2 {[%clk 0:01:56]}  Bxc3+ {[%clk 0:02:26]} 9. Nxc3 {[%clk 0:01:54]}  Nf6 {[%clk 0:02:26]} 10. Be3 {[%clk 0:01:48]}  Qa5 {[%clk 0:02:24]} 11. O-O {[%clk 0:01:44]}  b6 {[%clk 0:02:07]} 12. f4 {[%clk 0:01:41]}  Ba6 {[%clk 0:02:05]} 13. Rf2 {[%clk 0:01:35]}  Rc8 {[%clk 0:01:58]} 14. e5 {[%clk 0:01:23]}  Rxc3 {[%clk 0:01:44]} 15. bxc3 {[%clk 0:01:17]}  Ne4 {[%clk 0:01:38]} 16. Rf3 {[%clk 0:00:53]}  e6 {[%clk 0:01:29]} 17. Bd4 {[%clk 0:00:50]}  Nc6 {[%clk 0:01:20]} 18. Rh3 {[%clk 0:00:43]}  Kg8 {[%clk 0:01:12]} 19. Qf3 {[%clk 0:00:43]}  Nxd4 {[%clk 0:01:04]} 20. Qxe4 {[%clk 0:00:32]}  Ne2+ {[%clk 0:01:04]} 21. Kh1 {[%clk 0:00:32]}  Rf8 {[%clk 0:01:00]} 22. Rf1 {[%clk 0:00:28]}  Nxc3 {[%clk 0:00:55]} 23. Qe1 {[%clk 0:00:13]}  Bxf1 {[%clk 0:00:55]} 24. Qxf1 {[%clk 0:00:14]}  Nd5 {[%clk 0:00:52]} 25. Rf3 {[%clk 0:00:13]}  Qd2 {[%clk 0:00:37]} 26. Rf2 {[%clk 0:00:10]}  Rxf4 {[%clk 0:00:28]} 27. Rxf4 {[%clk 0:00:10]}  Nxf4 {[%clk 0:00:22]} 28. c4 {[%clk 0:00:08]}  Nd3 {[%clk 0:00:18]} 29. h3 {[%clk 0:00:06]}  Nxe5 {[%clk 0:00:17]} 30. Qf6 {[%clk 0:00:06]}  Qe1+ {[%clk 0:00:16]} 31. Kh2 {[%clk 0:00:05]}  Qe3 {[%clk 0:00:15]} 32. Kh1 {[%clk 0:00:04]}  Nf7 {[%clk 0:00:14]} 33. Qe7 {[%clk 0:00:04]}  Qe1+ {[%clk 0:00:13]} 34. Kh2 {[%clk 0:00:04]}  Qe5+ {[%clk 0:00:13]} 35. Kh1 {[%clk 0:00:04]}  Qd6 {[%clk 0:00:14]} 36. Qf6 {[%clk 0:00:04]}  Qe5 {[%clk 0:00:12]} 37. Qe7 {[%clk 0:00:04]}  Qd4 {[%clk 0:00:11]} 38. Qe8+ {[%clk 0:00:04]}  Kg7 {[%clk 0:00:11]} 39. Qe7 {[%clk 0:00:05]}  a5 {[%clk 0:00:10]} 40. a4 {[%clk 0:00:05]}  Qd1+ {[%clk 0:00:09]} 41. Kh2 {[%clk 0:00:05]}  Qxa4 {[%clk 0:00:09]} 42. Qh4 {[%clk 0:00:03]}  Qc6 {[%clk 0:00:08]} 43. Qd4+ {[%clk 0:00:04]}  e5 {[%clk 0:00:07]} 44. Qd3 {[%clk 0:00:04]}  Qe6 {[%clk 0:00:07]} 45. Qe4 {[%clk 0:00:04]}  Ng5 {[%clk 0:00:07]} 46. Qe3 {[%clk 0:00:04]}  Qf5 {[%clk 0:00:07]} 47. Qxb6 {[%clk 0:00:04]}  Qf4+ {[%clk 0:00:07]} 48. Kh1 {[%clk 0:00:05]}  Ne4 {[%clk 0:00:08]} 49. Qd6 {[%clk 0:00:03]}  Qc1+ {[%clk 0:00:08]} 50. Kh2 {[%clk 0:00:04]}  Qf4+ {[%clk 0:00:08]} 51. Kh1 {[%clk 0:00:04]}  Nxd6 {[%clk 0:00:08]} 0-1


[Site "https://www.chess.com"]

[Event "Titled Tuesday Blitz November 08 Early 2022"]
[White "Thomforde-Toates, Noah"]
[Black "Omariev, Maksim"]
[WhiteFideId "30951992"]
[BlackFideId "4193423"]
[WhiteElo "2617"]
[BlackElo "2413"]
[Result "1-0"]
[Round "05"]
[TimeControl "180+1"]
[Date "2022.11.09"]
[WhiteClock "0:00:11"]
[BlackClock "0:00:01"]

1. d4 {[%clk 0:02:48]}  d5 {[%clk 0:02:59]} 2. Nc3 {[%clk 0:02:43]}  Nf6 {[%clk 0:02:59]} 3. Bf4 {[%clk 0:02:43]}  Bf5 {[%clk 0:02:41]} 4. f3 {[%clk 0:02:41]}  e6 {[%clk 0:02:39]} 5. g4 {[%clk 0:02:40]}  Bg6 {[%clk 0:02:40]} 6. h4 {[%clk 0:02:41]}  h5 {[%clk 0:02:40]} 7. g5 {[%clk 0:02:41]}  Nfd7 {[%clk 0:02:41]} 8. e4 {[%clk 0:02:41]}  Nb6 {[%clk 0:02:39]} 9. Nge2 {[%clk 0:02:32]}  c5 {[%clk 0:02:03]} 10. Ng3 {[%clk 0:02:18]}  Nc6 {[%clk 0:01:57]} 11. Bb5 {[%clk 0:02:17]}  Rc8 {[%clk 0:01:53]} 12. O-O {[%clk 0:02:03]}  Qd7 {[%clk 0:01:27]} 13. exd5 {[%clk 0:02:02]}  Nxd5 {[%clk 0:01:25]} 14. Nxd5 {[%clk 0:02:01]}  Qxd5 {[%clk 0:01:25]} 15. Be5 {[%clk 0:01:21]}  cxd4 {[%clk 0:01:15]} 16. Bxc6+ {[%clk 0:01:19]}  Rxc6 {[%clk 0:01:12]} 17. Bxd4 {[%clk 0:01:17]}  Bxc2 {[%clk 0:00:49]} 18. Qd2 {[%clk 0:01:14]}  Rc4 {[%clk 0:00:15]} 19. Rac1 {[%clk 0:00:31]}  Bb4 {[%clk 0:00:12]} 20. Qe3 {[%clk 0:00:23]}  Rxd4 {[%clk 0:00:06]} 21. Rxc2 {[%clk 0:00:22]}  Bc5 {[%clk 0:00:07]} 22. Kg2 {[%clk 0:00:18]}  O-O {[%clk 0:00:03]} 23. Ne4 {[%clk 0:00:18]}  Bb6 {[%clk 0:00:02]} 24. Qe2 {[%clk 0:00:18]}  Rd8 {[%clk 0:00:02]} 25. Rfc1 {[%clk 0:00:15]}  Qf5 {[%clk 0:00:01]} 26. Rc8 {[%clk 0:00:15]}  Qf4 {[%clk 0:00:01]} 27. Rxd8+ {[%clk 0:00:14]}  Rxd8 {[%clk 0:00:02]} 28. Rd1 {[%clk 0:00:13]}  Rxd1 {[%clk 0:00:01]} 29. Qxd1 {[%clk 0:00:14]}  Qxh4 {[%clk 0:00:01]} 30. g6 {[%clk 0:00:12]}  fxg6 {[%clk 0:00:01]} 31. Qb3 {[%clk 0:00:11]} 1-0


[Site "https://www.chess.com"]

[Event "Titled Tuesday Blitz November 08 Early 2022"]
[White "Tifferet, Shaked"]
[Black "Boyer, Mahel"]
[WhiteFideId "2811529"]
[BlackFideId "45102422"]
[WhiteElo "2142"]
[BlackElo "2454"]
[Result "1-0"]
[Round "05"]
[TimeControl "180+1"]
[Date "2022.11.09"]
[WhiteClock "0:00:07"]
[BlackClock "0:00:03"]

1. d4 {[%clk 0:03:00]}  d5 {[%clk 0:02:59]} 2. c4 {[%clk 0:03:00]}  c6 {[%clk 0:02:57]} 3. Nf3 {[%clk 0:02:59]}  Nf6 {[%clk 0:02:56]} 4. Nc3 {[%clk 0:02:54]}  e6 {[%clk 0:02:54]} 5. e3 {[%clk 0:02:51]}  Nbd7 {[%clk 0:02:50]} 6. Qc2 {[%clk 0:02:48]}  Bd6 {[%clk 0:02:49]} 7. b3 {[%clk 0:02:47]}  O-O {[%clk 0:02:48]} 8. Bb2 {[%clk 0:02:47]}  b6 {[%clk 0:02:49]} 9. Rd1 {[%clk 0:02:47]}  Bb7 {[%clk 0:02:48]} 10. Bd3 {[%clk 0:02:44]}  c5 {[%clk 0:02:48]} 11. cxd5 {[%clk 0:02:44]}  exd5 {[%clk 0:02:46]} 12. O-O {[%clk 0:02:40]}  Re8 {[%clk 0:02:42]} 13. Bf5 {[%clk 0:02:30]}  Nf8 {[%clk 0:02:34]} 14. dxc5 {[%clk 0:02:27]}  bxc5 {[%clk 0:02:28]} 15. Na4 {[%clk 0:02:26]}  d4 {[%clk 0:02:20]} 16. Nd2 {[%clk 0:02:04]}  Nd5 {[%clk 0:02:02]} 17. Nc4 {[%clk 0:01:56]}  Ng6 {[%clk 0:01:33]} 18. Nxd6 {[%clk 0:01:46]}  Qxd6 {[%clk 0:01:34]} 19. Qxc5 {[%clk 0:01:46]}  Qf6 {[%clk 0:01:31]} 20. e4 {[%clk 0:01:33]}  Ndf4 {[%clk 0:01:28]} 21. Rfe1 {[%clk 0:01:14]}  Nh4 {[%clk 0:01:23]} 22. Re3 {[%clk 0:00:35]}  Nhxg2 {[%clk 0:00:22]} 23. Rg3 {[%clk 0:00:33]}  Re5 {[%clk 0:00:23]} 24. Bxd4 {[%clk 0:00:27]}  Rxc5 {[%clk 0:00:10]} 25. Bxf6 {[%clk 0:00:26]}  Rxf5 {[%clk 0:00:11]} 26. Rxg7+ {[%clk 0:00:09]}  Kf8 {[%clk 0:00:11]} 27. exf5 {[%clk 0:00:09]}  Nh3+ {[%clk 0:00:12]} 28. Kf1 {[%clk 0:00:09]}  Ngf4 {[%clk 0:00:05]} 29. Rd7 {[%clk 0:00:08]}  Ba6+ {[%clk 0:00:05]} 30. Ke1 {[%clk 0:00:08]}  Nd3+ {[%clk 0:00:03]} 31. Kd2 {[%clk 0:00:07]}  Ke8 {[%clk 0:00:02]} 32. Re7+ {[%clk 0:00:07]}  Kd8 {[%clk 0:00:03]} 33. Rg8# {[%clk 0:00:07]} 1-0


[Site "https://www.chess.com"]

[Event "Titled Tuesday Blitz November 08 Early 2022"]
[White "Timofeev, Artyom"]
[Black "Lewtak, Damian"]
[WhiteFideId "4140419"]
[BlackFideId "1141724"]
[WhiteElo "2586"]
[BlackElo "2329"]
[Result "0-1"]
[Round "05"]
[TimeControl "180+1"]
[Date "2022.11.09"]
[WhiteClock "0:00:12"]
[BlackClock "0:00:18"]

1. e4 {[%clk 0:03:00]}  g6 {[%clk 0:02:56]} 2. d4 {[%clk 0:03:00]}  Bg7 {[%clk 0:02:57]} 3. Nc3 {[%clk 0:03:00]}  a6 {[%clk 0:02:56]} 4. Bf4 {[%clk 0:02:58]}  b5 {[%clk 0:02:55]} 5. Qd2 {[%clk 0:02:57]}  Bb7 {[%clk 0:02:54]} 6. O-O-O {[%clk 0:02:54]}  d6 {[%clk 0:02:53]} 7. f3 {[%clk 0:02:52]}  Nd7 {[%clk 0:02:53]} 8. Kb1 {[%clk 0:02:52]}  Nb6 {[%clk 0:02:52]} 9. Qf2 {[%clk 0:02:32]}  b4 {[%clk 0:02:50]} 10. Nce2 {[%clk 0:02:32]}  a5 {[%clk 0:02:51]} 11. Nc1 {[%clk 0:02:32]}  Ba6 {[%clk 0:02:46]} 12. Bxa6 {[%clk 0:02:30]}  Rxa6 {[%clk 0:02:47]} 13. Qf1 {[%clk 0:02:26]}  Qa8 {[%clk 0:02:44]} 14. h4 {[%clk 0:02:21]}  Nf6 {[%clk 0:02:39]} 15. Nge2 {[%clk 0:02:18]}  a4 {[%clk 0:02:39]} 16. g4 {[%clk 0:02:13]}  h5 {[%clk 0:02:38]} 17. g5 {[%clk 0:02:08]}  Nfd7 {[%clk 0:02:31]} 18. Nd3 {[%clk 0:02:02]}  b3 {[%clk 0:02:25]} 19. a3 {[%clk 0:01:58]}  bxc2+ {[%clk 0:02:16]} 20. Kxc2 {[%clk 0:01:57]}  Nc4 {[%clk 0:02:13]} 21. Nb4 {[%clk 0:01:50]}  Ra5 {[%clk 0:02:05]} 22. Nc3 {[%clk 0:01:48]}  Ndb6 {[%clk 0:02:03]} 23. Ncd5 {[%clk 0:01:25]}  O-O {[%clk 0:01:51]} 24. Nxe7+ {[%clk 0:01:22]}  Kh7 {[%clk 0:01:52]} 25. Nec6 {[%clk 0:01:22]}  Rb5 {[%clk 0:01:36]} 26. Qd3 {[%clk 0:01:20]}  Qe8 {[%clk 0:01:09]} 27. Rh2 {[%clk 0:01:16]}  Qe6 {[%clk 0:00:52]} 28. Kc1 {[%clk 0:01:11]}  f5 {[%clk 0:00:50]} 29. Re2 {[%clk 0:00:53]}  fxe4 {[%clk 0:00:46]} 30. Rxe4 {[%clk 0:00:53]}  Qh3 {[%clk 0:00:39]} 31. Kb1 {[%clk 0:00:41]}  d5 {[%clk 0:00:34]} 32. Re7 {[%clk 0:00:35]}  Rxf4 {[%clk 0:00:31]} 33. Nd8 {[%clk 0:00:34]}  Rxf3 {[%clk 0:00:28]} 34. Qc2 {[%clk 0:00:27]}  Rb3 {[%clk 0:00:20]} 35. Ne6 {[%clk 0:00:13]}  Nxa3+ {[%clk 0:00:19]} 36. Ka2 {[%clk 0:00:12]}  Nxc2 {[%clk 0:00:20]} 37. Rxg7+ {[%clk 0:00:12]}  Kh8 {[%clk 0:00:18]} 0-1


[Site "https://www.chess.com"]